Cogmind - Beta 14 @@@ ROGUE MODE // 2024.08.08 @ 17:30:01 Player: Sgt. SmokeWeed Result: Self-destructed Performance ------------- Evolutions (2) 1000 Regions Visited (5) 1000 Robots Destroyed (18) 90 Value Destroyed (492) 492 Prototype IDs (24) 480 Alien Tech Used (0) 0 Bonus (300) 300 TOTAL SCORE: 3362 Bonus ------- Aligned with FarCom 300 Cogmind --------- Core Integrity 448/550 Matter 236/300 Energy 150/150 System Corruption 0% Temperature Cool (0) Movement Treading (240) Ox1 Location -8/Materials Parts ------- > --- POWER (1) -------- Light Angular Momentum Engine > --- PROPULSION (2) --- Light Treads > --- UTILITY (4) ------ Improved Heat Sink Bomb Drone Bay (0/16) > --- WEAPON (4) ------- Particle Gun Gauss Rifle Light Cannon > --- INVENTORY (5) ---- Ion Engine Improved Ion Engine Field Lobotomy Kit (5) Peak State ------------ > --- POWER ------------ Light Angular Momentum Engine > --- PROPULSION ------- Light Treads > --- UTILITY ---------- Improved Heat Sink Bomb Drone Bay > --- WEAPON ----------- Particle Gun Gauss Rifle Light Cannon > --- INVENTORY -------- Ion Engine Improved Ion Engine Field Lobotomy Kit [Rating: 31] Favorites ----------- Power Ion Engine Engine Ion Engine Propulsion Light Treads Treads Light Treads Utility Bomb Drone Bay Device Bomb Drone Bay Weapon Light Cannon Energy Gun Small Laser Ballistic Gun Gauss Rifle Ballistic Cannon Light Cannon Build | -11 -10 -10 -10 -9 -8 ------- Run | Yrd Mat Min Exi Min Mat Slots Evolved 4 | . . . . . 4 Power . | . . . . . . Propulsion . | . . . . . . Utility 2 | . . . . . 2 Weapon 2 | . . . . . 2 Parts Attached 12 | 5 1 . . 3 3 Power 3 | 1 . . . 1 1 Engine 3 | 1 . . . 1 1 Core . | . . . . . . Reactor . | . . . . . . Propulsion 2 | 2 . . . . . Treads 2 | 2 . . . . . Leg . | . . . . . . Wheel . | . . . . . . Hover . | . . . . . . Flight . | . . . . . . Utility 2 | . . . . 1 1 Device 2 | . . . . 1 1 Storage . | . . . . . . Processor . | . . . . . . Hackware . | . . . . . . Protection . | . . . . . . Artifact . | . . . . . . Weapon 5 | 2 1 . . 1 1 Energy Gun 2 | 1 . . . 1 . Energy Cannon . | . . . . . . Ballistic Gun 2 | 1 . . . . 1 Ballistic Cannon 1 | . 1 . . . . Launcher . | . . . . . . Special Weapon . | . . . . . . Impact Weapon . | . . . . . . Slashing Weapon . | . . . . . . Piercing Weapon . | . . . . . . Special Melee Weapon . | . . . . . . Unidentified Prototypes 1 | . . . . 1 . Parts Lost 1 | . . . . . 1 Power . | . . . . . . Propulsion 1 | . . . . . 1 Utility . | . . . . . . Weapon . | . . . . . . Highest Loss Streak 1 | . . . . . 1 To Critical Strikes . | . . . . . . Average Slot Usage (%) 77 | . 71 71 71 83 65 Engine 13 | . 14 14 14 14 9 Treads 25 | . 28 28 28 28 15 Device 10 | . . . . 12 17 Energy Gun 13 | . 14 14 14 14 9 Ballistic Gun 1 | . 5 . . . 6 Ballistic Cannon 12 | . 8 14 14 14 9 Peak Build Rating 31 | 5 5 5 6 22 31 Average Rating 17 | 3 5 5 5 19 27 On Entrance 7 | . 5 5 5 6 22 Naked Turns . | . . . . . . Heaviest Build 28 | 7 9 9 9 21 28 Greatest Support 40 | 40 40 40 40 40 40 Greatest Overweight (x) 1 | . . . . . 1 Average Overweight (x) . | . . . . . . Largest Inventory Capacity 5 | 5 5 5 5 5 5 Average Capacity 5 | 5 5 5 5 5 5 Most Carried 3 | . . . 1 3 3 Average Carried 1 | . . . . 1 2 Final Capacity 5 | 5 5 5 5 5 5 Final Carried 3 | . . . 1 2 3 Class Distribution -------------------- 88% | Mutant 11% | Skirmisher Dominant Class ---------------- Mutant | -10/Materials Mutant | -10/Mines Mutant | -10/Exiles Mutant | -9/Mines Skirmisher | -8/Materials Resources | -11 -10 -10 -10 -9 -8 ----------- Run | Yrd Mat Min Exi Min Mat Matter Collected 510 | 218 63 43 . 57 129 Remotely . | . . . . . . Salvage Created 578 | . 74 . . 102 402 Parts 34 | . 9 . . 7 18 Haulers Intercepted 2 | . 1 . . . 1 Recyclers Shooed . | . . . . . . Parts Field Recycled . | . . . . . . Retrieved Matter . | . . . . . . Parts Self-Destructed . | . . . . . . Prevented . | . . . . . . Kills | -11 -10 -10 -10 -9 -8 ------- Run | Yrd Mat Min Exi Min Mat Combat Hostiles Destroyed 14 | . 3 . . 3 8 Guns 8 | . 1 . . 1 6 Cannons 6 | . 2 . . 2 2 Classes Destroyed 6 | . 2 . . 1 3 Hauler 2 | . 1 . . . 1 Recycler 2 | . . . . . 2 Swarmer 5 | . 3 . . . 2 Grunt 7 | . . . . 3 4 Sentry 1 | . . . . . 1 Hunter 1 | . . . . . 1 Best Kill Streak 6 | . 3 . . 3 6 Combat Bots Only 3 | . 3 . . 3 3 Max Kills in Single Turn 2 | . 1 . . 1 2 Gunslinging . | . . . . . . Exploded . | . . . . . . Melee . | . . . . . . Uniques/NPCs Destroyed . | . . . . . . Combat | -11 -10 -10 -10 -9 -8 -------- Run | Yrd Mat Min Exi Min Mat Hostile Shots Fired 81 | . 17 . . 12 52 Missed 17 | . 4 . . 1 12 Damage Taken 739 | . 104 . . 157 478 Core 171 | . 39 . . 30 102 Absorbed by Shields . | . . . . . . Core Remaining (%) 86 | 100 . . . 72 . Volleys Fired 63 | . 24 . . 8 31 Largest 3 | . 2 . . 2 3 Hottest 128 | . 75 . . 75 128 Shots Fired 131 | . 46 . . 16 69 Gun 77 | . 31 . . 8 38 Cannon 54 | . 15 . . 8 31 Launcher . | . . . . . . Special . | . . . . . . Kinetic 74 | . 24 . . 8 42 Thermal 57 | . 22 . . 8 27 Explosive . | . . . . . . Electromagnetic . | . . . . . . Robot Hit Streak 6 | . 5 . . 6 5 Robot Miss Streak 4 | . 4 . . 3 4 Penetration Max . | . . . . . . Secondary Targets . | . . . . . . Shots Hit Robots 69 | . 27 . . 9 33 Core Hits 30 | . 6 . . 6 18 Critical Kills . | . . . . . . Critical Parts Destroyed . | . . . . . . Critical Strikes 2 | . . . . . 2 Burn 1 | . . . . . 1 Blast 1 | . . . . . 1 Melee Attacks . | . . . . . . Impact . | . . . . . . Slashing . | . . . . . . Piercing . | . . . . . . Sneak Attacks . | . . . . . . Combat Hostiles . | . . . . . . Follow-up Attacks . | . . . . . . Damage Inflicted 1140 | 3 364 . . 140 633 Guns 581 | . 163 . . 55 363 Cannons 545 | . 201 . . 74 270 Explosions . | . . . . . . Melee . | . . . . . . Ramming 14 | 3 . . . 11 . Kinetic 714 | . 245 . . 74 395 Thermal 412 | . 119 . . 55 238 Explosive . | . . . . . . Electromagnetic . | . . . . . . Impact . | . . . . . . Slashing . | . . . . . . Piercing . | . . . . . . Highest Corruption . | . . . . . . Average Corruption . | . . . . . . Corruption Purged . | . . . . . . Corruption Blocked . | . . . . . . Overload Shots . | . . . . . . Overflow Damage . | . . . . . . Projectiles . | . . . . . . Explosions . | . . . . . . Melee . | . . . . . . Knockbacks 9 | . 3 . . 1 5 Impact . | . . . . . . Kinetic 9 | . 3 . . 1 5 Secondary . | . . . . . . Self-Inflicted Damage . | . . . . . . Shots . | . . . . . . Rammed 3 | 1 . . . 2 . Targets Rammed 3 | 1 . . . 2 . Kicked . | . . . . . . Crushed . | . . . . . . Highest Temperature 174 | . 90 . . 172 174 Average Temperature 58 | . 36 . . 83 71 Received Heat Transfer 234 | . . . . 90 144 Siege Activations . | . . . . . . Robots Corrupted . | . . . . . . Combat Hostiles . | . . . . . . Parts Fried . | . . . . . . Impact Corruptions . | . . . . . . Robots Melted . | . . . . . . Combat Hostiles . | . . . . . . Parts Melted 1 | . . . . . 1 Heat Transferred 1066 | . 275 . . 125 666 Parts Sabotaged . | . . . . . . Parts Stolen . | . . . . . . Parts Stripped . | . . . . . . Power Chain Reactions . | . . . . . . Alert | -11 -10 -10 -10 -9 -8 ------- Run | Yrd Mat Min Exi Min Mat Peak Influence 211 | . 107 41 . 85 211 Initial 41 | . . 41 . . . Average 35 | . 26 41 . 7 133 Maximum Alert Level 1 | . . . . . 1 Low Security (%) 95 | 100 100 100 . 100 77 Level 1 4 | . . . . . 22 Level 2 . | . . . . . . Level 3 . | . . . . . . Level 4 . | . . . . . . Level 5 . | . . . . . . High Security . | . . . . . . Max Security . | . . . . . . Squads Dispatched 1 | . 1 . . . . Investigation . | . . . . . . Extermination . | . . . . . . Reinforcement 1 | . 1 . . . . Assault . | . . . . . . Garrison . | . . . . . . Intercept . | . . . . . . Searches Triggered . | . . . . . . Construction Impeded . | . . . . . . Haulers Reinforced . | . . . . . . Active Scanning Responses . | . . . . . . Cargo Convoy Interrupts . | . . . . . . Stealth | -11 -10 -10 -10 -9 -8 --------- Run | Yrd Mat Min Exi Min Mat Distress Signals 2 | . . . . . 2 Communications Jammed . | . . . . . . Distress Signals . | . . . . . . Times Spotted 29 | . 10 . . 3 16 Peak Tracking Total 5 | . 4 . . 3 5 Tactical Retreats 6 | . . . . . 6 Traps | -11 -10 -10 -10 -9 -8 ------- Run | Yrd Mat Min Exi Min Mat Traps Triggered . | . . . . . . Indirectly . | . . . . . . Trap Hack Attempts . | . . . . . . Triggered . | . . . . . . Disarmed . | . . . . . . Reprogrammed . | . . . . . . Reused . | . . . . . . Traps Extracted . | . . . . . . Installed . | . . . . . . Triggered . | . . . . . . Machines | -11 -10 -10 -10 -9 -8 ---------- Run | Yrd Mat Min Exi Min Mat Machines Disabled 2 | . 1 . . 1 . Max in Single Turn 1 | . 1 . . 1 . Machines Repaired . | . . . . . . Machines Dismantled . | . . . . . . Machines Sabotaged . | . . . . . . Overloaded Fab Kills . | . . . . . . Hacking | -11 -10 -10 -10 -9 -8 --------- Run | Yrd Mat Min Exi Min Mat Machines Accessed 4 | . 1 . 1 1 1 Terminals 2 | . 1 . . . 1 Fabricators . | . . . . . . Repair Stations . | . . . . . . Recycling Units . | . . . . . . Scanalyzers . | . . . . . . Garrison Access . | . . . . . . Total Hacks 7 | . 4 . 1 1 1 Successful 3 | . . . 1 1 1 Failed 4 | . 4 . . . . Catastrophic . | . . . . . . Database Lockouts . | . . . . . . Manual 6 | . 4 . 1 . 1 Terminals 5 | . 4 . . . 1 Fabricators . | . . . . . . Repair Stations . | . . . . . . Recycling Units . | . . . . . . Scanalyzers . | . . . . . . Garrison Access . | . . . . . . Terminal Hacks 3 | . . . 1 1 1 Open Door 1 | . . . . 1 . Branch Access Points 1 | . . . . . 1 Derelict Proto ID Bank 1 | . . . 1 . . Fabricator Hacks . | . . . . . . Repair Station Hacks . | . . . . . . Recycling Unit Hacks . | . . . . . . Scanalyzer . | . . . . . . Garrison Access Hacks . | . . . . . . Unauthorized Hacks . | . . . . . . Terminals . | . . . . . . Fabricators . | . . . . . . Repair Stations . | . . . . . . Recycling Units . | . . . . . . Scanalyzers . | . . . . . . Garrison Access . | . . . . . . Data Cores Recovered . | . . . . . . Used . | . . . . . . Hacking Detections 1 | . 1 . . . . Full Trace Events 1 | . 1 . . . . Feedback Events . | . . . . . . Feedback Blocked . | . . . . . . Robot Schematics Acquired . | . . . . . . Robots Built . | . . . . . . Authchips . | . . . . . . Time . | . . . . . . Total Robot Build Rating . | . . . . . . Part Schematics Acquired . | . . . . . . Parts Built . | . . . . . . Authchips . | . . . . . . Time . | . . . . . . Total Part Build Rating . | . . . . . . Parts Repaired . | . . . . . . Time . | . . . . . . Parts Recycled . | . . . . . . Recycled Matter . | . . . . . . Retrieved Matter . | . . . . . . Retrieved Components . | . . . . . . Parts Scanalyzed . | . . . . . . Part Schematics Acquired . | . . . . . . Parts Damaged . | . . . . . . Bothacking | -11 -10 -10 -10 -9 -8 ------------ Run | Yrd Mat Min Exi Min Mat Used RIF Installer . | . . . . . . Robots Hacked . | . . . . . . Non-combat . | . . . . . . Combat . | . . . . . . Robot Hacks Applied . | . . . . . . Relay Couplers Released . | . . . . . . Fabnet Peak Effective % . | . . . . . . Robots Rewired . | . . . . . . Allies Hacked . | . . . . . . Hacks Repelled . | . . . . . . Allies | -11 -10 -10 -10 -9 -8 -------- Run | Yrd Mat Min Exi Min Mat Total Allies . | . . . . . . Largest Group . | . . . . . . Highest-Rated Group . | . . . . . . Highest-Rated Ally . | . . . . . . Total Orders 5 | . . . . 3 2 EXPLORE 3 | . . . . 2 1 RETURN 2 | . . . . 1 1 Ally Attacks 16 | . . . . 10 6 Total Damage . | . . . . . . Kills . | . . . . . . Allies Corrupted . | . . . . . . Allies Melted . | . . . . . . Intel | -11 -10 -10 -10 -9 -8 ------- Run | Yrd Mat Min Exi Min Mat Robot Analysis Total . | . . . . . . Derelict Logs Recovered 2 | . . . . 2 . Drone Launches 28 | . . . . 16 12 Drone Recoveries 12 | . . . . 6 6 Exploration | -11 -10 -10 -10 -9 -8 ------------- Run | Yrd Mat Min Exi Min Mat Turns Passed 3299 | 71 282 69 352 1927 598 Spaces Moved 1430 | 42 133 44 220 785 206 Core 4 | 4 . . . . . Treads 1426 | 38 133 44 220 785 206 Legs . | . . . . . . Wheels . | . . . . . . Hover . | . . . . . . Flight . | . . . . . . Fastest Speed 50 | 50 160 160 160 160 160 Average Speed 163 | 149 160 160 160 160 183 Slowest Speed 240 | 160 160 160 160 160 240 Overloaded Moves . | . . . . . . Propulsion Burnouts . | . . . . . . Robots Hopped . | . . . . . . Cave-ins Triggered . | . . . . . . Exploration Rate (%) 40 | 4 28 17 63 101 30 Regions Visited 5 Branch Regions 3 Pre-discovered Areas . | . . . . . . Known Exits Taken . | . . . . . . Unknown Exits Taken 5 | 1 1 1 1 1 . Scrap Searched 1 | . . . . 1 . Spaces Dug . | . . . . . . Terrain Destroyed 1 | . . . . . 1 Melee . | . . . . . . Projectile 1 | . . . . . 1 AOE . | . . . . . . Terrain Rammed . | . . . . . . Walls Destroyed . | . . . . . . Machines Disabled . | . . . . . . Actions | -11 -10 -10 -10 -9 -8 --------- Run | Yrd Mat Min Exi Min Mat Total 2267 | 47 158 43 220 1438 361 Wait 761 | . . . . 640 121 Move 1425 | 41 132 43 219 784 206 Hop . | . . . . . . Pick Up 1 | . . . 1 . . Fast Attach 9 | 5 1 . . 1 2 Attach . | . . . . . . Detach . | . . . . . . Swap 3 | . . . . 2 1 Drop 2 | . 1 . . 1 . Fire 63 | . 24 . . 8 31 Melee . | . . . . . . Ram . | . . . . . . Kick . | . . . . . . Crush 3 | 1 . . . 2 . Escape Stasis . | . . . . . . Rewire . | . . . . . . Trap . | . . . . . . Miscellaneous . | . . . . . . Route ------- -11/Scrapyard -10/Materials -10/Mines -10/Exiles -9/Mines (discovered 2 exits: *Mat x2) -8/Materials History --------- Turn | Location | Event 32 | -11/Scrapyard | Discovered new exit (range 15) 72 | -11/Scrapyard | Entered Materials 301 | -10/Materials | Build established: Mutant 339 | -10/Materials | Discovered new exit (range 7) 354 | -10/Materials | Entered Mines 356 | -10/Mines | Met a Derelict bent on vengeance 415 | -10/Mines | Deemed a non-threat by the Exiles lab entrance 417 | -10/Mines | Discovered new exit (range 5) 423 | -10/Mines | Entered Exiles 463 | -10/Exiles | Met 8R-AWN 489 | -10/Exiles | Met EX-HEX 535 | -10/Exiles | Met EX-BIN 555 | -10/Exiles | Aligned with FarCom system 556 | -10/Exiles | Given EX-Vault access code 593 | -10/Exiles | Opened EX-Vault 614 | -10/Exiles | Found Field Lobotomy Kit 644 | -10/Exiles | Warned to stay clear of 0b10 Research branches 659 | -10/Exiles | Exiles lab attacked by MAIN.C 754 | -10/Exiles | Discovered new exit (range 14) 775 | -10/Exiles | Left Exiles lab with Field Lobotomy Kit 775 | -10/Exiles | Entered Mines 903 | -9/Mines | Assembled infested the area 940 | -9/Mines | Found the Drone Emporium 947 | -9/Mines | Found Prototype Device 947 | -9/Mines | Identified Bomb Drone Bay 999 | -9/Mines | Discovered new exit (range 61) 1031 | -9/Mines | Discovered new exit (range 70) 1732 | -9/Mines | Learned Materials stockpile data 1834 | -9/Mines | Learned 2 Materials zone layouts 1839 | -9/Mines | Found DCF Scrap (14 items) 2702 | -9/Mines | Entered Materials 2702 | -8/Materials | Evolved 4 slots: Utility x2, Weapon x2 3096 | -8/Materials | Lost 4 allies 3208 | -8/Materials | Build established: Skirmisher 3300 | -8/Materials | Self-destructed Last Messages --------------- K-01 Serf collects debris. U-05 Engineer lays Concrete. U-05 Engineer builds a Wall. K-01 Serf collects debris. U-05 Engineer lays Concrete. K-01 Serf collects debris. U-05 Engineer lays Concrete. K-01 Serf collects debris. U-05 Engineer builds a Wall. U-05 Engineer lays Concrete. K-01 Serf collects debris. U-05 Engineer lays Concrete. U-05 Engineer builds a Wall. U-05 Engineer lays Concrete. K-01 Serf collects debris. U-05 Engineer lays Concrete. K-01 Serf collects debris. U-05 Engineer lays Concrete. U-05 Engineer builds a Wall. U-05 Engineer lays Concrete. Map ----- +----------------------------------------------------+ | #????????#""" ????????????????????????? | | #????????# "" """????????????????????????? | | #????????# """????????????????????????? | | #????????# """????????????????????????? | | #????????# ????????????????????????? | | ##???????# ????????????????????????? | | #######??#####+###????????????????????????? | | # #?????# ????????????????????????? | | #### # ##????# ????????????????????????? | | # #????### ##????????????????????????? | | ###????????#?????##+##??????????????? | | = ## #?????????????? #??????????????? | | %! #?????????????? "" #??????????????? | | # ####???????????? T #??????????????? | | #??????####?? #??????????????? | | ### ## # ###??????#T"#??# #???????????????? | | # % # ########### "#### #???????????????? | | %=% #???????????????? | | ############+############# #???????????????? | | #????????# #????????# #???????????????? | | ?????????# ! #######??# #???????????????? | | ?????????# # ?# #???????????????? | | ?????????# """ # ?# +???????????????? | | ?????????# """ !# # #???????????????? | | ?????????# """ # # ######??????????? | | ?????????######## @ #?????? | | ????????????????# # #?????? | | ????????????????# ###+####### +?????? | | ????????????????# ????????????????????? | | ????????????????# ????????????????????? | | ????????????????#######?????????????????????? | | ????????????????????????????????????????????? | | ????????????????????????????????????????????? | | ????????????????????????????????????????????? | | ????????????????????????????????????????????? | | ????????????????????????????????????????????? | | | | | | | | | | | | | | | | | | | | | | | | | | | | | +----------------------------------------------------+ Best States ------------- Heat Dissipation 45 Energy Generation 18 Energy Capacity 265 Matter Stores 300 Matter Capacity 300 Sight Range 16 Terrain Scan Density 10 Evasion (%) 40 Recoil Reduction 2 Item Schematics ----------------- None Robot Schematics ------------------ None Fabricated ------------ Nothing Alien Tech Used ----------------- None Achievements -------------- None Challenges ------------ None Game ------ Seed DeepMappingCyclogen Manual? 0 Play Time 00:13:51 Cumulative 67.3 hours Start 2024.08.08 @ 17:19:04 End 2024.08.08 @ 17:30:01 Sessions 1 Manual Loads 0 Difficulty Rogue Special Mode None Game No. 158 Rogue 83 Adventurer 75 Explorer 0 Win Type - Total 0 Types 0/0/0/0/0/0/0/0/0 Lore% 34 Gallery% 41 Achievement% 34 Wizard Run 0 Options --------- Layout 0 ASCII 0 Keyboard 0 Movement Mouse Keybinds 0 Fullscreen 1 Font 24/Smallcaps Map View 76x50 Zoom Use 0% Tactical HUD 0 Map Filters NONE Filters NONE Steam 1 RUN: 25ad1d28-b149-4071-8c14-5d540e3530b6